fUSD/lending_fUSD_20250308
["ID","MTS","AMOUNT","RATE_DAILY","PERIOD"]
[355648709,1741432324693,156.43,7.513e-05,2]
[355648710,1741432324881,156.43,7.603e-05,2]
[355648711,1741432325098,156.43,7.693e-05,2]
[355648712,1741432325285,156.43,7.783e-05,2]
[355648714,1741432325479,156.43,7.874e-05,2]
[355648715,1741432325892,156.43,7.964e-05,2]
[355648716,1741432402683,212.62,7.445e-05,2]
[355648717,1741432613460,910.0,0.00020011,120]
[355648749,1741433233490,1600.0,7.9e-05,2]
[355648750,1741433235598,3200.0,8e-05,2]
[355648782,1741433398498,163.28,7.637e-05,2]
[355648791,1741433431495,-550.0,8.119e-05,2]
[355648792,1741433431504,-500.0,8.119e-05,2]
[355648793,1741433431514,-2945.24171077,8.119e-05,2]
[355648794,1741433435052,-38.21698923,8.119e-05,2]
[355648795,1741433435064,-228.47212245,8.119e-05,2]
[355648796,1741433435145,-771.52787755,8.119e-05,2]
[355648797,1741433435160,-300.0,8.139e-05,2]
[355648798,1741433435174,-943.60322122,8.14e-05,2]
[355648799,1741433435190,-2388.93954564,8.14e-05,2]
[355648808,1741433437432,-584.78514729,8.14e-05,2]
[355648809,1741433437449,-277.595,8.14e-05,2]
[355648810,1741433437491,-9560.14897815,8.14e-05,2]
[355648811,1741433437503,-4979.59601964,8.14e-05,2]
[355648812,1741433437516,-855.22544957,8.218e-05,2]
[355648813,1741433437531,-16.38755043,8.218e-05,2]
[355648814,1741433437545,-1248.81683573,8.218e-05,2]
[355648815,1741433437558,-150.0,8.218e-05,2]
[355648816,1741433437571,-187.368983,8.219e-05,2]
[355648817,1741433437583,-164.710671,8.219e-05,2]
[355648818,1741433437598,-500.0,8.219e-05,2]
[355648819,1741433437609,-609.41,8.219e-05,2]
[355648820,1741433437619,-86.40595894,8.219e-05,2]
[355648821,1741433437646,-413.59404106,8.219e-05,2]
[355648822,1741433437656,-500.0,8.219e-05,2]
[355648823,1741433437666,-500.0,8.219e-05,2]
[355648824,1741433437676,-500.0,8.219e-05,2]
[355648825,1741433437686,-500.0,8.219e-05,2]
[355648826,1741433437695,-807.25,8.219e-05,2]
[355648832,1741433438077,-500.0,8.219e-05,2]
[355648833,1741433438098,-500.0,8.219e-05,2]
[355648834,1741433438108,-500.0,8.219e-05,2]
[355648835,1741433438118,-500.0,8.219e-05,2]
[355648836,1741433438127,-509.73605782,8.219e-05,2]
[355648837,1741433438138,-500.0,8.219e-05,2]
[355648838,1741433438148,-500.0,8.219e-05,2]
[355648839,1741433438157,-520.72,8.219e-05,2]
[355648840,1741433438167,-500.0,8.219e-05,2]
[355648841,1741433438176,-602.89026434,8.219e-05,2]
[355648843,1741433438186,-500.0,8.219e-05,2]
[355648845,1741433438196,-556.77364787,8.219e-05,2]
[355648847,1741433438205,-500.0,8.219e-05,2]
[355648849,1741433438214,-500.0,8.219e-05,2]
[355648850,1741433438224,-553.21,8.219e-05,2]
[355648851,1741433438233,-719.21,8.219e-05,2]
[355648852,1741433438243,-500.0,8.219e-05,2]
[355648853,1741433438255,-529.6,8.219e-05,2]
[355648854,1741433438264,-685.25,8.219e-05,2]
[355648855,1741433438273,-500.0,8.219e-05,2]
[355648856,1741433438282,-306.31066212,8.219e-05,2]
[355648857,1741433438292,-500.0,8.219e-05,2]
[355648858,1741433438301,-500.0,8.219e-05,2]
[355648859,1741433438311,-500.0,8.219e-05,2]
[355648860,1741433438322,-500.0,8.219e-05,2]
[355648861,1741433438332,-504.57,8.219e-05,2]
[355648862,1741433438341,-500.0,8.219e-05,2]
[355648863,1741433438351,-500.0,8.219e-05,2]
[355648864,1741433438360,-500.0,8.219e-05,2]
[355648865,1741433438370,-500.0,8.219e-05,2]
[355648866,1741433438379,-500.0,8.219e-05,2]
[355648867,1741433438389,-643.76,8.219e-05,2]
[355648868,1741433438398,-668.47,8.219e-05,2]
[355648869,1741433438408,-500.0,8.219e-05,2]
[355648870,1741433438418,-500.0,8.219e-05,2]
[355648871,1741433438426,-390.81203801,8.219e-05,2]
[355648874,1741433439537,-342.21796199,8.219e-05,2]
[355648875,1741433439546,-500.0,8.219e-05,2]
[355648876,1741433439556,-375.18203801,8.219e-05,2]
[355648877,1741433439592,-124.81796199,8.219e-05,2]
[355648878,1741433439602,-500.0,8.219e-05,2]
[355648879,1741433439614,-500.0,8.219e-05,2]
[355648880,1741433439624,-500.0,8.219e-05,2]
[355648881,1741433439634,-500.0,8.219e-05,2]
[355648882,1741433439647,-500.0,8.219e-05,2]
[355648883,1741433439656,-500.0,8.219e-05,2]
[355648884,1741433439667,-500.0,8.219e-05,2]
[355648885,1741433439676,-507.45276572,8.219e-05,2]
[355648886,1741433439686,-500.0,8.219e-05,2]
[355648887,1741433439696,-500.0,8.219e-05,2]
[355648888,1741433439705,-500.0,8.219e-05,2]
[355648889,1741433439714,-500.0,8.219e-05,2]
[355648890,1741433439724,-674.85,8.219e-05,2]
[355648891,1741433439734,-500.0,8.219e-05,2]
[355648892,1741433439744,-500.0,8.219e-05,2]
[355648893,1741433439753,-500.0,8.219e-05,2]
[355648894,1741433439764,-500.0,8.219e-05,2]
[355648895,1741433439774,-687.44,8.219e-05,2]
[355648896,1741433439785,-500.0,8.219e-05,2]
[355648897,1741433439795,-500.0,8.219e-05,2]
[355648898,1741433439805,-500.0,8.219e-05,2]
[355648899,1741433439816,-500.0,8.219e-05,2]
[355648900,1741433439826,-500.0,8.219e-05,2]
[355648901,1741433439836,-500.0,8.219e-05,2]
[355648902,1741433439845,-500.0,8.219e-05,2]
[355648903,1741433439855,-639.66,8.219e-05,2]
[355648904,1741433439866,-510.36210134,8.219e-05,2]
[355648905,1741433439876,-500.0,8.219e-05,2]
[355648906,1741433439886,-500.0,8.219e-05,2]
[355648907,1741433439896,-500.0,8.219e-05,2]
[355648908,1741433439906,-669.17,8.219e-05,2]
[355648909,1741433439916,-500.0,8.219e-05,2]
[355648910,1741433439926,-548.66,8.219e-05,2]
[355648911,1741433439936,-1000.54,8.219e-05,2]
[355648912,1741433439949,-500.0,8.219e-05,2]
[355648913,1741433439961,-500.0,8.219e-05,2]
[355648914,1741433439970,-173.71469071,8.219e-05,2]
[355648915,1741433439980,-353.91004048,8.219e-05,2]
[355648916,1741433439990,-614.01,8.219e-05,2]
[355648917,1741433440002,-1054.58,8.219e-05,2]
[355648918,1741433440013,-586.55,8.219e-05,2]
[355648919,1741433440023,-500.0,8.219e-05,2]
[355648920,1741433440034,-500.0,8.219e-05,2]
[355648921,1741433440044,-500.0,8.219e-05,2]
[355648922,1741433440054,-638.86,8.219e-05,2]
[355648923,1741433440063,-541.23,8.219e-05,2]
[355648924,1741433440075,-621.05,8.219e-05,2]
[355648925,1741433440084,-569.71,8.219e-05,2]
[355648926,1741433440095,-500.0,8.219e-05,2]
[355648927,1741433440104,-519.12,8.219e-05,2]
[355648928,1741433440115,-788.05,8.219e-05,2]
[355648929,1741433440125,-655.4,8.219e-05,2]
[355648930,1741433440135,-644.63,8.219e-05,2]
[355648931,1741433440145,-634.95,8.219e-05,2]
[355648932,1741433440154,-1047.79,8.219e-05,2]
[355648933,1741433440165,-500.0,8.219e-05,2]
[355648934,1741433440175,-500.0,8.219e-05,2]
[355648935,1741433440186,-800.91,8.219e-05,2]
[355648936,1741433440195,-500.0,8.219e-05,2]
[355648937,1741433440206,-541.09,8.219e-05,2]
[355648938,1741433440216,-606.54,8.219e-05,2]
[355648939,1741433440225,-500.0,8.219e-05,2]
[355648940,1741433440235,-713.2,8.219e-05,2]
[355648941,1741433440245,-500.0,8.219e-05,2]
[355648942,1741433440254,-1071.51294886,8.219e-05,2]
[355648943,1741433440269,-153.99705114,8.219e-05,2]
[355648944,1741433440279,-720.76,8.219e-05,2]
[355648945,1741433440289,-907.25,8.219e-05,2]
[355648946,1741433440299,-500.94512463,8.219e-05,2]
[355648947,1741433440309,-500.0,8.219e-05,2]
[355648948,1741433440319,-500.0,8.219e-05,2]
[355648949,1741433440329,-500.0,8.219e-05,2]
[355648950,1741433440338,-654.39,8.219e-05,2]
[355648951,1741433440348,-500.0,8.219e-05,2]
[355648952,1741433440358,-566.27,8.219e-05,2]
[355648953,1741433440370,-527.67,8.219e-05,2]
[355648954,1741433440380,-500.0,8.219e-05,2]
[355648955,1741433440390,-500.0,8.219e-05,2]
[355648956,1741433440400,-990.05,8.219e-05,2]
[355648957,1741433440409,-500.0,8.219e-05,2]
[355648958,1741433440419,-538.37,8.219e-05,2]
[355648959,1741433440428,-522.22,8.219e-05,2]
[355648960,1741433440438,-119.3395584,8.219e-05,2]
[355648961,1741433440480,-389.3804416,8.219e-05,2]
[355648962,1741433440490,-744.95,8.219e-05,2]
[355648963,1741433440507,-476.1895584,8.219e-05,2]
[355648964,1741433440518,-92.4704416,8.219e-05,2]
[355648965,1741433440527,-337.9945584,8.219e-05,2]
[355648966,1741433441364,-1412.9754416,8.219e-05,2]
[355648967,1741433441374,-590.82,8.219e-05,2]
[355648968,1741433441383,-500.0,8.219e-05,2]
[355648969,1741433441393,-983.91,8.219e-05,2]
[355648970,1741433441403,-284.90530109,8.219e-05,2]
[355648973,1741433442643,-375.80469891,8.219e-05,2]
[355648974,1741433442653,-609.34,8.219e-05,2]
[355648975,1741433442662,-500.0,8.219e-05,2]
[355648976,1741433442671,-500.0,8.219e-05,2]
[355648977,1741433442681,-500.0,8.219e-05,2]
[355648978,1741433442691,-549.05,8.219e-05,2]
[355648979,1741433442701,-500.0,8.219e-05,2]
[355648980,1741433442711,-500.0,8.219e-05,2]
[355648981,1741433442721,-500.0,8.219e-05,2]
[355648982,1741433442731,-796.1,8.219e-05,2]
[355648983,1741433442741,-436.92180956,8.219e-05,2]
[355648995,1741433444653,-63.07819044,8.219e-05,2]
[355648996,1741433444663,-500.0,8.219e-05,2]
[355648997,1741433444673,-298.71273956,8.219e-05,2]
[355648998,1741433444684,-143.97598371,8.219e-05,2]
[355648999,1741433444694,-715.89,8.219e-05,2]
[355649000,1741433444704,-500.0,8.219e-05,2]
[355649001,1741433444715,-513.60817394,8.219e-05,2]
[355649002,1741433444726,-133.43182606,8.219e-05,2]
[355649003,1741433444736,-500.0,8.219e-05,2]
[355649004,1741433444745,-100.15408352,8.219e-05,2]
[355649005,1741433444764,-507.97841217,8.219e-05,2]
[355649006,1741433444773,-500.0,8.219e-05,2]
[355649007,1741433444783,-128.31742965,8.219e-05,2]
[355649031,1741433445457,-415.544742,8.178e-05,2]
[355649034,1741433445467,-371.68257035,8.219e-05,2]
[355649036,1741433445476,-679.4,8.219e-05,2]
[355649038,1741433445486,-500.0,8.219e-05,2]
[355649040,1741433445496,-547.04,8.219e-05,2]
[355649042,1741433445505,-500.0,8.219e-05,2]
[355649044,1741433445515,-500.0,8.219e-05,2]
[355649046,1741433445525,-764.4,8.219e-05,2]
[355649048,1741433445534,-684.09,8.219e-05,2]
[355649050,1741433445543,-627.36,8.219e-05,2]
[355649052,1741433445552,-504.43398488,8.219e-05,2]
[355649054,1741433445562,-1139.22,8.219e-05,2]
[355649056,1741433445573,-500.0,8.219e-05,2]
[355649058,1741433445583,-655.76,8.219e-05,2]
[355649060,1741433445593,-578.06,8.219e-05,2]
[355649062,1741433445602,-866.16,8.219e-05,2]
[355649063,1741433445612,-500.0,8.219e-05,2]
[355649064,1741433445621,-500.0,8.219e-05,2]
[355649065,1741433445630,-500.0,8.219e-05,2]
[355649066,1741433445640,-500.0,8.219e-05,2]
[355649067,1741433445648,-500.0,8.219e-05,2]
[355649068,1741433445657,-580.32,8.219e-05,2]
[355649069,1741433445667,-594.99,8.219e-05,2]
[355649070,1741433445676,-500.0,8.219e-05,2]
[355649071,1741433445686,-505.1793341,8.219e-05,2]
[355649072,1741433445696,-500.0,8.219e-05,2]
[355649073,1741433445706,-500.0,8.219e-05,2]
[355649074,1741433445716,-500.0,8.219e-05,2]
[355649075,1741433445726,-645.69,8.219e-05,2]
[355649076,1741433445735,-673.13,8.219e-05,2]
[355649077,1741433445745,-756.01,8.219e-05,2]
[355649078,1741433445755,-500.0,8.219e-05,2]
[355649079,1741433445765,-500.0,8.219e-05,2]
[355649080,1741433445774,-686.78,8.219e-05,2]
[355649081,1741433445784,-875.19,8.219e-05,2]
[355649083,1741433445793,-584.53,8.219e-05,2]
[355649085,1741433445802,-1117.26,8.219e-05,2]
[355649087,1741433445811,-500.0,8.219e-05,2]
[355649089,1741433445821,-153.25295353,8.219e-05,2]
[355649091,1741433445830,-500.0,8.219e-05,2]
[355649093,1741433445840,-500.0,8.219e-05,2]
[355649095,1741433445849,-500.0,8.219e-05,2]
[355649097,1741433445858,-793.33,8.219e-05,2]
[355649099,1741433445868,-500.0,8.219e-05,2]
[355649101,1741433445877,-500.0,8.219e-05,2]
[355649103,1741433445887,-542.98,8.219e-05,2]
[355649105,1741433445896,-762.82,8.219e-05,2]
[355649107,1741433445905,-1007.8,8.219e-05,2]
[355649109,1741433445916,-819.16,8.219e-05,2]
[355649133,1741433446141,-500.0,8.219e-05,2]
[355649135,1741433446151,-500.0,8.219e-05,2]
[355649137,1741433446161,-500.0,8.219e-05,2]
[355649139,1741433446170,-500.0,8.219e-05,2]
[355649141,1741433446179,-856.22,8.219e-05,2]
[355649143,1741433446188,-500.0,8.219e-05,2]
[355649145,1741433446198,-500.0,8.219e-05,2]
[355649147,1741433446207,-500.0,8.219e-05,2]
[355649148,1741433446216,-500.0,8.219e-05,2]
[355649149,1741433446225,-302.70815714,8.219e-05,2]
[355649150,1741433446235,-500.0,8.219e-05,2]
[355649151,1741433446244,-644.84,8.219e-05,2]
[355649152,1741433446254,-567.78,8.219e-05,2]
[355649153,1741433446263,-500.0,8.219e-05,2]
[355649154,1741433446272,-500.0,8.219e-05,2]
[355649155,1741433446282,-1085.89,8.219e-05,2]
[355649156,1741433446292,-500.0,8.219e-05,2]
[355649157,1741433446301,-500.0,8.219e-05,2]
[355649158,1741433446310,-755.03,8.219e-05,2]
[355649159,1741433446319,-500.0,8.219e-05,2]
[355649160,1741433446328,-500.0,8.219e-05,2]
[355649161,1741433446338,-500.0,8.219e-05,2]
[355649162,1741433446348,-668.64,8.219e-05,2]
[355649163,1741433446357,-500.04,8.219e-05,2]
[355649164,1741433446366,-500.0,8.219e-05,2]
[355649165,1741433446375,-500.0,8.219e-05,2]
[355649166,1741433446385,-1034.28,8.219e-05,2]
[355649167,1741433446394,-500.0,8.219e-05,2]
[355649168,1741433446403,-1160.69,8.219e-05,2]
[355649169,1741433446413,-571.53,8.219e-05,2]
[355649170,1741433446422,-500.0,8.219e-05,2]
[355649171,1741433446432,-500.0,8.219e-05,2]
[355649172,1741433446442,-706.4,8.219e-05,2]
[355649173,1741433446451,-573.95,8.219e-05,2]
[355649174,1741433446461,-500.0,8.219e-05,2]
[355649175,1741433446470,-784.41,8.219e-05,2]
[355649176,1741433446480,-1190.09,8.219e-05,2]
[355649177,1741433446489,-500.0,8.219e-05,2]
[355649178,1741433446499,-500.0,8.219e-05,2]
[355649179,1741433446508,-500.0,8.219e-05,2]
[355649180,1741433446517,-775.02,8.219e-05,2]
[355649182,1741433446527,-1218.63,8.219e-05,2]
[355649183,1741433446537,-500.0,8.219e-05,2]
[355649184,1741433446548,-815.21,8.219e-05,2]
[355649185,1741433446557,-500.0,8.219e-05,2]
[355649186,1741433446567,-500.0,8.219e-05,2]
[355649187,1741433446576,-510.81114962,8.219e-05,2]
[355649188,1741433446585,-1153.73,8.219e-05,2]
[355649189,1741433446594,-505.23206607,8.219e-05,2]
[355649190,1741433446604,-500.0,8.219e-05,2]
[355649191,1741433446613,-1254.83,8.219e-05,2]
[355649192,1741433446623,-503.15891962,8.219e-05,2]
[355649193,1741433446632,-793.54,8.219e-05,2]
[355649194,1741433446642,-1185.49,8.219e-05,2]
[355649195,1741433446652,-1277.76,8.219e-05,2]
[355649196,1741433446662,-312.50288763,8.219e-05,2]
[355649197,1741433446672,-500.0,8.219e-05,2]
[355649198,1741433446682,-1416.04,8.219e-05,2]
[355649199,1741433446692,-500.0,8.219e-05,2]
[355649200,1741433446702,-500.0,8.219e-05,2]
[355649201,1741433446712,-678.07,8.219e-05,2]
[355649202,1741433446721,-500.0,8.219e-05,2]
[355649203,1741433446732,-936.1,8.219e-05,2]
[355649204,1741433446742,-518.34,8.219e-05,2]
[355649205,1741433446751,-1065.7,8.219e-05,2]
[355649206,1741433446761,-500.0,8.219e-05,2]
[355649207,1741433446770,-500.0,8.219e-05,2]
[355649208,1741433446780,-669.32,8.219e-05,2]
[355649209,1741433446790,-500.0,8.219e-05,2]
[355649210,1741433446800,-2003.17,8.219e-05,2]
[355649211,1741433446810,-1094.22,8.219e-05,2]
[355649212,1741433446819,-500.0,8.219e-05,2]
[355649213,1741433446829,-2261.5,8.219e-05,2]
[355649214,1741433446839,-4199.03,8.219e-05,2]
[355649215,1741433446849,-500.0,8.219e-05,2]
[355649216,1741433446859,-1441.32,8.219e-05,2]
[355649217,1741433446868,-1278.34,8.219e-05,2]
[355649218,1741433446878,-854.0,8.219e-05,2]
[355649219,1741433446887,-25997.7,8.219e-05,2]
[355649220,1741433446897,-2512.16,8.219e-05,2]
[355649221,1741433446907,-1101.42,8.219e-05,2]
[355649222,1741433446919,-640.66,8.219e-05,2]
[355649223,1741433446929,-2933.25,8.219e-05,2]
[355649224,1741433446939,-2471.12,8.219e-05,2]
[355649225,1741433446949,-789.23,8.219e-05,2]
[355649226,1741433446964,-6565.01,8.219e-05,2]
[355649227,1741433446974,-2777.01,8.219e-05,2]
[355649228,1741433446983,-3408.93,8.219e-05,2]
[355649229,1741433446994,-2922.58,8.219e-05,2]
[355649230,1741433447005,-1240.58,8.219e-05,2]
[355649231,1741433447015,-500.0,8.219e-05,2]
[355649232,1741433447025,-756.63,8.219e-05,2]
[355649233,1741433447034,-2037.97,8.219e-05,2]
[355649234,1741433447045,-1581.36,8.219e-05,2]
[355649235,1741433447054,-1094.33,8.219e-05,2]
[355649236,1741433447064,-1941.28,8.219e-05,2]
[355649237,1741433447075,-2035.83,8.219e-05,2]
[355649238,1741433447085,-571.63,8.219e-05,2]
[355649239,1741433447095,-1754.91,8.219e-05,2]
[355649240,1741433447106,-1142.3,8.219e-05,2]
[355649241,1741433447116,-4358.47,8.219e-05,2]
[355649242,1741433447126,-2924.74,8.219e-05,2]
[355649243,1741433447136,-2230.49,8.219e-05,2]
[355649244,1741433447146,-613.45,8.219e-05,2]
[355649245,1741433447155,-5763.13,8.219e-05,2]
[355649246,1741433447164,-681.31,8.219e-05,2]
[355649247,1741433447175,-598.15,8.219e-05,2]
[355649248,1741433447184,-500.0,8.219e-05,2]
[355649249,1741433447193,-2121.59,8.219e-05,2]
[355649250,1741433447203,-2062.91,8.219e-05,2]
[355649251,1741433447212,-1513.11,8.219e-05,2]
[355649252,1741433447221,-500.0,8.219e-05,2]
[355649253,1741433447231,-500.0,8.219e-05,2]
[355649254,1741433447240,-607.33,8.219e-05,2]
[355649255,1741433447250,-751.43,8.219e-05,2]
[355649256,1741433447259,-6184.03,8.219e-05,2]
[355649257,1741433447269,-3502.52,8.219e-05,2]
[355649258,1741433447279,-1961.75,8.219e-05,2]
[355649259,1741433447288,-3818.41,8.219e-05,2]
[355649260,1741433447298,-527.81,8.219e-05,2]
[355649261,1741433447307,-571.14,8.219e-05,2]
[355649262,1741433447317,-500.0,8.219e-05,2]
[355649263,1741433447327,-1960.14,8.219e-05,2]
[355649264,1741433447338,-3489.2,8.219e-05,2]
[355649265,1741433447348,-931.72,8.219e-05,2]
[355649266,1741433447358,-335.35383304,8.219e-05,2]
[355649267,1741433447370,-7436.09,8.219e-05,2]
[355649268,1741433447381,-1074.99,8.219e-05,2]
[355649269,1741433447392,-933.56,8.219e-05,2]
[355649270,1741433447403,-776.29,8.219e-05,2]
[355649271,1741433447413,-4006.52,8.219e-05,2]
[355649272,1741433447424,-1068.9,8.219e-05,2]
[355649273,1741433447433,-597.51,8.219e-05,2]
[355649274,1741433447444,-3072.84,8.219e-05,2]
[355649275,1741433447454,-2906.67,8.219e-05,2]
[355649276,1741433447465,-3265.57,8.219e-05,2]
[355649277,1741433447477,-616.79,8.219e-05,2]
[355649278,1741433447486,-500.0,8.219e-05,2]
[355649279,1741433447495,-6267.65,8.219e-05,2]
[355649280,1741433447504,-856.39,8.219e-05,2]
[355649281,1741433447513,-969.47,8.219e-05,2]
[355649282,1741433447522,-500.0,8.219e-05,2]
[355649283,1741433447532,-2539.65,8.219e-05,2]
[355649284,1741433447541,-9803.96,8.219e-05,2]
[355649285,1741433447550,-1495.94,8.219e-05,2]
[355649286,1741433447560,-500.0,8.219e-05,2]
[355649287,1741433447569,-2125.49,8.219e-05,2]
[355649288,1741433447578,-1629.48,8.219e-05,2]
[355649289,1741433447588,-1364.78,8.219e-05,2]
[355649290,1741433447597,-1828.22,8.219e-05,2]
[355649291,1741433447607,-858.78,8.219e-05,2]
[355649292,1741433447617,-276.3089581,8.219e-05,2]
[355649293,1741433447634,-1440.6310419,8.219e-05,2]
[355649294,1741433447643,-1391.0,8.219e-05,2]
[355649295,1741433447653,-3019.0,8.219e-05,2]
[355649296,1741433447662,-1864.8,8.219e-05,2]
[355649297,1741433447672,-500.0,8.219e-05,2]
[355649298,1741433447681,-1466.39,8.219e-05,2]
[355649299,1741433447690,-500.0,8.219e-05,2]
[355649300,1741433447699,-3047.11,8.219e-05,2]
[355649301,1741433447709,-948.34,8.219e-05,2]
[355649302,1741433447718,-500.0,8.219e-05,2]
[355649303,1741433447728,-2188.06,8.219e-05,2]
[355649304,1741433447737,-1391.68,8.219e-05,2]
[355649305,1741433447747,-16854.58,8.219e-05,2]
[355649306,1741433447756,-4585.12,8.219e-05,2]
[355649307,1741433447766,-500.0,8.219e-05,2]
[355649308,1741433447775,-500.0,8.219e-05,2]
[355649309,1741433447785,-3863.08,8.219e-05,2]
[355649310,1741433447794,-3247.59,8.219e-05,2]
[355649311,1741433447803,-249.33989533,8.219e-05,2]
[355649312,1741433447863,-429.20010467,8.219e-05,2]
[355649313,1741433447874,-1118.51,8.219e-05,2]
[355649314,1741433447883,-2412.99,8.219e-05,2]
[355649315,1741433447892,-1923.48,8.219e-05,2]
[355649316,1741433447902,-12451.14,8.219e-05,2]
[355649317,1741433447911,-1475.97,8.219e-05,2]
[355649318,1741433447923,-1101.04,8.219e-05,2]
[355649319,1741433447932,-1676.54,8.219e-05,2]
[355649320,1741433447942,-500.0,8.219e-05,2]
[355649321,1741433447951,-500.0,8.219e-05,2]
[355649322,1741433447963,-2258.1,8.219e-05,2]
[355649323,1741433447974,-860.85,8.219e-05,2]
[355649324,1741433447983,-503.79,8.219e-05,2]
[355649325,1741433447993,-2130.69,8.219e-05,2]
[355649326,1741433448003,-500.0,8.219e-05,2]
[355649327,1741433448012,-4135.14,8.219e-05,2]
[355649328,1741433448022,-500.0,8.219e-05,2]
[355649329,1741433448032,-500.0,8.219e-05,2]
[355649330,1741433448041,-2073.01,8.219e-05,2]
[355649331,1741433448050,-3126.41,8.219e-05,2]
[355649332,1741433448059,-2340.17,8.219e-05,2]
[355649333,1741433448068,-1431.27,8.219e-05,2]
[355649334,1741433448077,-500.0,8.219e-05,2]
[355649335,1741433448087,-4547.35,8.219e-05,2]
[355649336,1741433448096,-500.0,8.219e-05,2]
[355649337,1741433448105,-1256.79,8.219e-05,2]
[355649338,1741433448114,-500.0,8.219e-05,2]
[355649339,1741433448123,-859.81,8.219e-05,2]
[355649340,1741433448132,-500.0,8.219e-05,2]
[355649341,1741433448141,-500.0,8.219e-05,2]
[355649342,1741433448150,-2414.57,8.219e-05,2]
[355649343,1741433448159,-1129.02,8.219e-05,2]
[355649344,1741433448169,-500.0,8.219e-05,2]
[355649345,1741433448179,-3080.32,8.219e-05,2]
[355649346,1741433448188,-3800.31,8.219e-05,2]
[355649347,1741433448198,-3272.5,8.219e-05,2]
[355649348,1741433448207,-500.0,8.219e-05,2]
[355649349,1741433448217,-3794.14,8.219e-05,2]
[355649350,1741433448227,-3723.89,8.219e-05,2]
[355649351,1741433448237,-1319.06,8.219e-05,2]
[355649352,1741433448246,-888.38,8.219e-05,2]
[355649353,1741433448255,-500.0,8.219e-05,2]
[355649354,1741433448265,-1884.2,8.219e-05,2]
[355649355,1741433448274,-711.06,8.219e-05,2]
[355649356,1741433448284,-711.06,8.219e-05,2]
[355649357,1741433448293,-895.87,8.219e-05,2]
[355649358,1741433448303,-3644.56409189,8.219e-05,2]
[355649359,1741433470132,158.03,7.506e-05,2]
[355649360,1741433470336,158.03,7.732e-05,2]
[355649361,1741433470529,158.03,7.957e-05,2]
[355649368,1741433936208,355.19,7.572e-05,2]
[355649369,1741433985284,-159.0,8.219e-05,3]
[355649370,1741434003784,160.0,8.219e-05,3]
[355649371,1741434021468,-2025.93179469,8.989e-05,20]
[355649372,1741434033872,5742.38,7.552e-05,2]
[355649373,1741434062796,-4800.0,8.9e-05,3]
[355649374,1741434062819,-6400.0,9e-05,3]
[355649375,1741434068215,4208.8,8.01e-05,2]
[355649376,1741434127650,151.0,9e-05,3]
[355649377,1741434237775,11266.12,7.534e-05,2]
[355649381,1741434404783,3000.0,8.081e-05,2]
[355649383,1741434420017,3000.0,8.081e-05,2]
[355649388,1741434447717,800.0,7.9e-05,2]
[355649389,1741434448714,2276.21902,8.081e-05,2]
[355649390,1741434449829,1600.0,8e-05,2]
[355649392,1741434472332,289.32,7.477e-05,2]
[355649405,1741434571063,159.54,7.731e-05,2]
[355649406,1741434592902,-550.0,8.131e-05,2]
[355649407,1741434592926,-150.0,8.144e-05,2]
[355649408,1741434592948,-300.0,8.217e-05,2]
[355649409,1741434592972,-500.0,8.218e-05,2]
[355649410,1741434592995,-500.0,8.218e-05,2]
[355649411,1741434593017,-500.0,8.218e-05,2]
[355649412,1741434593039,-497.82566632,8.218e-05,2]
[355649413,1741434593061,-697.29,8.218e-05,2]
[355649414,1741434593081,-500.0,8.219e-05,2]
[355649415,1741434593104,-588.43,8.219e-05,2]
[355649416,1741434593126,-448.914016,8.219e-05,2]
[355649417,1741434593150,-704.11676,8.219e-05,2]
[355649418,1741434593172,-545.97,8.219e-05,2]
[355649419,1741434593197,-525.8,8.219e-05,2]
[355649420,1741434593219,-500.0,8.219e-05,2]
[355649421,1741434593239,-500.0,8.219e-05,2]
[355649422,1741434593262,-651.09,8.219e-05,2]